[Event "*** Titled Tuesday Blitz"]
[Site "Chess.com"]
[Date "2019.07.02"]
[Round "5"]
[White "WarlordX"]
[Black "hermionegrangermagic"]
[Result "0-1"]
[WhiteElo "2386"]
[BlackElo "2349"]
[TimeControl "180+2"]
[EndTime "14:08:31 PDT"]
[Termination "hermionegrangermagic won by checkmate"]

1. d4 {[%clk 0:02:59.3]} 1... d5 {[%clk 0:03:00]} 2. c4 {[%clk 0:02:59.8]} 2...
e6 {[%clk 0:03:01]} 3. Nf3 {[%clk 0:03:00.7]} 3... Nf6 {[%clk 0:03:02.2]} 4. Nc3
{[%clk 0:03:01.8]} 4... Be7 {[%clk 0:03:03.3]} 5. Bg5 {[%clk 0:02:58.9]} 5...
O-O {[%clk 0:03:03.4]} 6. e3 {[%clk 0:02:58.8]} 6... h6 {[%clk 0:03:04.5]} 7.
Bh4 {[%clk 0:02:59.3]} 7... Ne4 {[%clk 0:03:05.2]} 8. Bxe7 {[%clk 0:02:59]} 8...
Qxe7 {[%clk 0:03:05.2]} 9. Nxe4 {[%clk 0:03:00.3]} 9... dxe4 {[%clk 0:03:05.8]}
10. Nd2 {[%clk 0:03:02.2]} 10... f5 {[%clk 0:02:55.3]} 11. c5 {[%clk 0:02:43.2]}
11... e5 {[%clk 0:02:50.1]} 12. Bc4+ {[%clk 0:02:40.1]} 12... Kh8 {[%clk
0:02:47.8]} 13. O-O {[%clk 0:02:33.9]} 13... exd4 {[%clk 0:02:44.3]} 14. exd4
{[%clk 0:02:35.8]} 14... f4 {[%clk 0:02:45.2]} 15. Re1 {[%clk 0:02:33.9]} 15...
Bf5 {[%clk 0:02:37.4]} 16. Nxe4 {[%clk 0:02:18.4]} 16... Bxe4 {[%clk 0:02:38.4]}
17. f3 {[%clk 0:02:19.7]} 17... Nc6 {[%clk 0:02:31.6]} 18. Rxe4 {[%clk
0:02:20.4]} 18... Qf6 {[%clk 0:02:32.5]} 19. d5 {[%clk 0:02:07.9]} 19... Ne5
{[%clk 0:02:27.6]} 20. Bb3 {[%clk 0:02:03.9]} 20... b6 {[%clk 0:02:22.1]} 21.
Rc1 {[%clk 0:02:03.3]} 21... Nd7 {[%clk 0:02:07.8]} 22. cxb6 {[%clk 0:01:59.2]}
22... cxb6 {[%clk 0:02:08.1]} 23. Rc6 {[%clk 0:01:16]} 23... Qxb2 {[%clk
0:02:01.4]} 24. Re7 {[%clk 0:01:17.1]} 24... Nc5 {[%clk 0:01:51]} 25. Bc2 {[%clk
0:01:05.8]} 25... Rfe8 {[%clk 0:01:05.9]} 26. Rcc7 {[%clk 0:00:52.5]} 26... Rxe7
{[%clk 0:01:02.2]} 27. Rxe7 {[%clk 0:00:54.4]} 27... Rd8 {[%clk 0:00:57.3]} 28.
Rxa7 {[%clk 0:00:50.9]} 28... Qe5 {[%clk 0:00:51.3]} 29. Qd2 {[%clk 0:00:19]}
29... Ne6 {[%clk 0:00:23.8]} 30. h3 {[%clk 0:00:16.6]} 30... Ng5 {[%clk
0:00:22]} 31. Kh2 {[%clk 0:00:16.4]} 31... h5 {[%clk 0:00:15.5]} 32. Qd3 {[%clk
0:00:17.2]} 32... Qe1 {[%clk 0:00:12.4]} 33. Bb3 {[%clk 0:00:09.5]} 33... Qg3+
{[%clk 0:00:12.4]} 34. Kh1 {[%clk 0:00:10.6]} 34... Re8 {[%clk 0:00:09.7]} 35.
Qf1 {[%clk 0:00:03.9]} 35... Re1 {[%clk 0:00:09.4]} 36. Bc4 {[%clk 0:00:05.5]}
36... Rxf1+ {[%clk 0:00:09.9]} 37. Bxf1 {[%clk 0:00:07.4]} 37... Qf2 {[%clk
0:00:10]} 38. Bd3 {[%clk 0:00:06.3]} 38... Qe1+ {[%clk 0:00:10.2]} 39. Kh2
{[%clk 0:00:07.9]} 39... Qg3+ {[%clk 0:00:11.4]} 40. Kh1 {[%clk 0:00:09.4]}
40... Qe1+ {[%clk 0:00:12.3]} 41. Kh2 {[%clk 0:00:10.8]} 41... g6 {[%clk
0:00:13.8]} 42. Bxg6 {[%clk 0:00:11.3]} 42... Qg3+ {[%clk 0:00:14.1]} 43. Kh1
{[%clk 0:00:12.3]} 43... Nxf3 {[%clk 0:00:14.3]} 44. gxf3 {[%clk 0:00:13]} 44...
Qxf3+ {[%clk 0:00:15]} 45. Kh2 {[%clk 0:00:13.5]} 45... Qg3+ {[%clk 0:00:16.2]}
46. Kh1 {[%clk 0:00:15.4]} 46... Qxh3+ {[%clk 0:00:17.2]} 47. Kg1 {[%clk
0:00:16.4]} 47... Qg3+ {[%clk 0:00:18.6]} 48. Kf1 {[%clk 0:00:18.3]} 48... Qxg6
{[%clk 0:00:18.9]} 49. Rc7 {[%clk 0:00:19.4]} 49... Qd3+ {[%clk 0:00:18.8]} 50.
Kf2 {[%clk 0:00:14.6]} 50... Qxd5 {[%clk 0:00:19.7]} 51. Rc2 {[%clk 0:00:13.6]}
51... h4 {[%clk 0:00:19.9]} 52. a4 {[%clk 0:00:13.9]} 52... h3 {[%clk 0:00:21]}
53. Kf1 {[%clk 0:00:15.4]} 53... Qh1+ {[%clk 0:00:20.8]} 54. Ke2 {[%clk
0:00:16]} 54... Qg2+ {[%clk 0:00:22]} 55. Kd3 {[%clk 0:00:17.9]} 55... Qxc2+
{[%clk 0:00:22.9]} 56. Kxc2 {[%clk 0:00:19.8]} 56... h2 {[%clk 0:00:24.2]} 57.
Kc3 {[%clk 0:00:21.7]} 57... h1=Q {[%clk 0:00:25.5]} 58. Kb4 {[%clk 0:00:23.6]}
58... f3 {[%clk 0:00:26.6]} 59. Kb5 {[%clk 0:00:25.5]} 59... f2 {[%clk
0:00:27.8]} 60. Kxb6 {[%clk 0:00:27.4]} 60... f1=Q {[%clk 0:00:29.1]} 61. a5
{[%clk 0:00:29.3]} 61... Qb1+ {[%clk 0:00:29.7]} 62. Ka7 {[%clk 0:00:30]} 62...
Qhb7# {[%clk 0:00:29.7]} 0-1

[Event "*** Titled Tuesday Blitz"]
[Site "Chess.com"]
[Date "2019.07.02"]
[Round "5"]
[White "ecwinslow"]
[Black "WorldChampionBulletChess"]
[Result "0-1"]
[WhiteElo "1979"]
[BlackElo "2133"]
[TimeControl "180+2"]
[EndTime "14:08:33 PDT"]
[Termination "WorldChampionBulletChess won by checkmate"]

1. d4 {[%clk 0:03:01.9]} 1... Nf6 {[%clk 0:03:00.5]} 2. c4 {[%clk 0:03:01.9]}
2... e6 {[%clk 0:03:01.9]} 3. Nc3 {[%clk 0:03:01.4]} 3... c5 {[%clk 0:03:02.7]}
4. d5 {[%clk 0:03:01.6]} 4... exd5 {[%clk 0:03:04.6]} 5. cxd5 {[%clk 0:03:02.9]}
5... d6 {[%clk 0:03:05.8]} 6. Nf3 {[%clk 0:03:01.8]} 6... Na6 {[%clk 0:03:06.3]}
7. h3 {[%clk 0:02:59]} 7... Be7 {[%clk 0:03:06.6]} 8. e4 {[%clk 0:02:58.5]} 8...
Nc7 {[%clk 0:03:07.3]} 9. a4 {[%clk 0:02:58.5]} 9... O-O {[%clk 0:03:06.4]} 10.
Bf4 {[%clk 0:02:56.2]} 10... Nh5 {[%clk 0:03:06.7]} 11. Bh2 {[%clk 0:02:57.1]}
11... f5 {[%clk 0:03:07.7]} 12. e5 {[%clk 0:02:43.4]} 12... dxe5 {[%clk
0:03:08]} 13. Bxe5 {[%clk 0:02:43.4]} 13... Bf6 {[%clk 0:03:02.9]} 14. Bc4
{[%clk 0:02:35.2]} 14... Kh8 {[%clk 0:03:00.6]} 15. O-O {[%clk 0:02:34.6]} 15...
Ne8 {[%clk 0:02:14.8]} 16. d6 {[%clk 0:02:03.5]} 16... Bd7 {[%clk 0:02:06.6]}
17. Re1 {[%clk 0:01:54.5]} 17... Bc6 {[%clk 0:02:06.6]} 18. Bb5 {[%clk
0:01:19.2]} 18... Bxe5 {[%clk 0:01:50.1]} 19. Nxe5 {[%clk 0:01:20.1]} 19... Bxg2
{[%clk 0:01:22.9]} 20. Kxg2 {[%clk 0:01:13.7]} 20... Qg5+ {[%clk 0:01:23.4]} 21.
Kh1 {[%clk 0:01:07.7]} 21... Nf4 {[%clk 0:01:06.7]} 22. Qf3 {[%clk 0:01:06.6]}
22... Qh6 {[%clk 0:01:07.7]} 23. Bxe8 {[%clk 0:00:51.6]} 23... Nxh3 {[%clk
0:01:02.5]} 24. Ng4 {[%clk 0:00:23.7]} 24... Nxf2+ {[%clk 0:00:54.1]} 25. Kg2
{[%clk 0:00:19.2]} 25... Nxg4 {[%clk 0:00:54.9]} 26. Rh1 {[%clk 0:00:10.6]}
26... Qxd6 {[%clk 0:00:55.8]} 27. Rad1 {[%clk 0:00:09.1]} 27... Qb6 {[%clk
0:00:29.6]} 28. Bd7 {[%clk 0:00:08.4]} 28... Qxb2+ {[%clk 0:00:29.5]} 29. Kg3
{[%clk 0:00:09]} 29... Ne5 {[%clk 0:00:25.5]} 30. Qh5 {[%clk 0:00:07.9]} 30...
Qxc3+ {[%clk 0:00:25.9]} 31. Kg2 {[%clk 0:00:07]} 31... Qc2+ {[%clk 0:00:18]}
32. Kf1 {[%clk 0:00:06]} 32... Qc4+ {[%clk 0:00:17.6]} 33. Kg2 {[%clk
0:00:05.6]} 33... Qe4+ {[%clk 0:00:18.3]} 34. Kf1 {[%clk 0:00:06]} 34... Qf3+
{[%clk 0:00:18.3]} 35. Qxf3 {[%clk 0:00:06.6]} 35... Nxf3 {[%clk 0:00:20.2]} 36.
Rd5 {[%clk 0:00:07.1]} 36... Nd4 {[%clk 0:00:21]} 37. Rxc5 {[%clk 0:00:07.4]}
37... Rad8 {[%clk 0:00:21.6]} 38. Bb5 {[%clk 0:00:06.5]} 38... Nb3 {[%clk
0:00:22.4]} 39. Re5 {[%clk 0:00:06]} 39... h6 {[%clk 0:00:20.3]} 40. Ke2 {[%clk
0:00:06.2]} 40... Rd2+ {[%clk 0:00:20.2]} 41. Ke3 {[%clk 0:00:06.6]} 41... Rdd8
{[%clk 0:00:20.6]} 42. Kf4 {[%clk 0:00:06.8]} 42... Nd4 {[%clk 0:00:21.3]} 43.
Bc4 {[%clk 0:00:06]} 43... Nc2 {[%clk 0:00:22.5]} 44. Re2 {[%clk 0:00:05.5]}
44... Nd4 {[%clk 0:00:23.3]} 45. Rg2 {[%clk 0:00:06.5]} 45... g5+ {[%clk
0:00:22.1]} 46. Kg3 {[%clk 0:00:07.7]} 46... f4+ {[%clk 0:00:22.6]} 47. Kg4
{[%clk 0:00:08.8]} 47... Kg7 {[%clk 0:00:22.9]} 48. Rb2 {[%clk 0:00:08.3]} 48...
b6 {[%clk 0:00:23.2]} 49. a5 {[%clk 0:00:09.5]} 49... Rd6 {[%clk 0:00:22.7]} 50.
axb6 {[%clk 0:00:10.5]} 50... axb6 {[%clk 0:00:24.6]} 51. Ra2 {[%clk 0:00:11.5]}
51... Rd7 {[%clk 0:00:24.5]} 52. Bd3 {[%clk 0:00:11]} 52... Rff7 {[%clk
0:00:24.6]} 53. Rah2 {[%clk 0:00:10.7]} 53... Rd6 {[%clk 0:00:25.1]} 54. Be4
{[%clk 0:00:11.8]} 54... Ne6 {[%clk 0:00:25.4]} 55. Bf5 {[%clk 0:00:11.5]} 55...
Nf8 {[%clk 0:00:26.4]} 56. Re2 {[%clk 0:00:11.2]} 56... Ng6 {[%clk 0:00:26.4]}
57. Bxg6 {[%clk 0:00:11.1]} 57... Kxg6 {[%clk 0:00:28.3]} 58. Rhe1 {[%clk
0:00:12.4]} 58... Rff6 {[%clk 0:00:28.9]} 59. Re7 {[%clk 0:00:12.9]} 59... Rd3
{[%clk 0:00:29.3]} 60. Rg1 {[%clk 0:00:12]} 60... h5# {[%clk 0:00:30.5]} 0-1

[Event "*** Titled Tuesday Blitz"]
[Site "Chess.com"]
[Date "2019.07.02"]
[Round "5"]
[White "ElGasanov"]
[Black "ChessQueen"]
[Result "1-0"]
[WhiteElo "2723"]
[BlackElo "2600"]
[TimeControl "180+2"]
[EndTime "14:08:38 PDT"]
[Termination "ElGasanov won by resignation"]

1. c4 {[%clk 0:02:56.5]} 1... c5 {[%clk 0:02:56.9]} 2. Nf3 {[%clk 0:02:56.5]}
2... Nf6 {[%clk 0:02:56.4]} 3. Nc3 {[%clk 0:02:56.7]} 3... Nc6 {[%clk
0:02:57.3]} 4. e3 {[%clk 0:02:56.3]} 4... e6 {[%clk 0:02:56.3]} 5. d4 {[%clk
0:02:57.1]} 5... d5 {[%clk 0:02:57.1]} 6. a3 {[%clk 0:02:58.7]} 6... a6 {[%clk
0:02:57.8]} 7. dxc5 {[%clk 0:02:57.9]} 7... Bxc5 {[%clk 0:02:58.7]} 8. b4 {[%clk
0:02:58.9]} 8... Be7 {[%clk 0:02:58]} 9. Bb2 {[%clk 0:02:59.3]} 9... O-O {[%clk
0:02:58.5]} 10. Qc2 {[%clk 0:02:59.7]} 10... dxc4 {[%clk 0:02:54.4]} 11. Bxc4
{[%clk 0:02:58.7]} 11... Qc7 {[%clk 0:02:53.6]} 12. Bd3 {[%clk 0:02:54.3]} 12...
h6 {[%clk 0:02:30.1]} 13. O-O {[%clk 0:02:52.2]} 13... Bd7 {[%clk 0:02:18.9]}
14. Ne4 {[%clk 0:02:51.5]} 14... Nxe4 {[%clk 0:02:15.1]} 15. Bxe4 {[%clk
0:02:52.8]} 15... Rfc8 {[%clk 0:02:10.5]} 16. Rac1 {[%clk 0:02:47.3]} 16... Qb6
{[%clk 0:01:53.8]} 17. Qb1 {[%clk 0:02:35.9]} 17... Be8 {[%clk 0:01:52]} 18. Qa1
{[%clk 0:02:13.9]} 18... Bf8 {[%clk 0:01:52.6]} 19. Ne5 {[%clk 0:01:58.6]} 19...
Nxe5 {[%clk 0:01:40.1]} 20. Bxe5 {[%clk 0:01:59.2]} 20... Qb5 {[%clk 0:01:39.5]}
21. Rfd1 {[%clk 0:01:45.8]} 21... Rxc1 {[%clk 0:01:24.6]} 22. Rxc1 {[%clk
0:01:46.6]} 22... Rd8 {[%clk 0:01:25.7]} 23. h3 {[%clk 0:01:35.6]} 23... Rd2
{[%clk 0:01:13.2]} 24. Rc8 {[%clk 0:00:58.1]} 24... Qd7 {[%clk 0:00:52.4]} 25.
Qc3 {[%clk 0:00:54.7]} 25... Rd1+ {[%clk 0:00:46.3]} 26. Kh2 {[%clk 0:00:56]}
26... f6 {[%clk 0:00:45.7]} 27. Bd4 {[%clk 0:00:49.6]} 27... e5 {[%clk
0:00:35.9]} 28. Qb3+ {[%clk 0:00:40.9]} 28... Bf7 {[%clk 0:00:36.3]} 29. Rxf8+
{[%clk 0:00:36]} 29... Kxf8 {[%clk 0:00:37.1]} 30. Qxd1 {[%clk 0:00:36.9]} 30...
exd4 {[%clk 0:00:38.5]} 31. Qxd4 {[%clk 0:00:37.9]} 31... Qc7+ {[%clk
0:00:39.6]} 32. f4 {[%clk 0:00:37.3]} 32... b6 {[%clk 0:00:38.9]} 33. Bd3 {[%clk
0:00:28.2]} 33... a5 {[%clk 0:00:40]} 34. Bf5 {[%clk 0:00:25.2]} 34... Ke7
{[%clk 0:00:29.4]} 35. Kg3 {[%clk 0:00:23.1]} 35... g5 {[%clk 0:00:29.2]} 36.
Qe4+ {[%clk 0:00:23.5]} 36... Kf8 {[%clk 0:00:30.1]} 37. Qd4 {[%clk 0:00:23.6]}
37... Ke7 {[%clk 0:00:29.9]} 38. Kf3 {[%clk 0:00:21.2]} 38... Qc6+ {[%clk
0:00:23.4]} 39. Qe4+ {[%clk 0:00:21.4]} 39... Qxe4+ {[%clk 0:00:23.2]} 40. Kxe4
{[%clk 0:00:21.5]} 40... Kd6 {[%clk 0:00:24.7]} 41. Kd4 {[%clk 0:00:22.6]} 41...
Bd5 {[%clk 0:00:12.7]} 42. e4 {[%clk 0:00:21.8]} 42... Bc6 {[%clk 0:00:14]} 43.
g3 {[%clk 0:00:21.5]} 43... gxf4 {[%clk 0:00:12.9]} 44. gxf4 {[%clk 0:00:22.1]}
44... Bb5 {[%clk 0:00:14]} 45. e5+ {[%clk 0:00:22.8]} 45... fxe5+ {[%clk
0:00:15.2]} 46. fxe5+ {[%clk 0:00:24.4]} 46... Ke7 {[%clk 0:00:16.5]} 47. h4
{[%clk 0:00:24.1]} 47... Bc6 {[%clk 0:00:16.3]} 48. bxa5 {[%clk 0:00:25.1]}
48... bxa5 {[%clk 0:00:17.3]} 49. Kc5 {[%clk 0:00:26.5]} 49... Be8 {[%clk
0:00:14.4]} 50. Kb6 {[%clk 0:00:27.2]} 50... a4 {[%clk 0:00:15.7]} 51. Kc5
{[%clk 0:00:28.4]} 51... Bh5 {[%clk 0:00:15.1]} 52. Bc2 {[%clk 0:00:27.3]} 52...
Be8 {[%clk 0:00:16.1]} 53. Kd4 {[%clk 0:00:26]} 53... Ke6 {[%clk 0:00:16.4]} 54.
Bd3 {[%clk 0:00:26.1]} 54... Bc6 {[%clk 0:00:16.2]} 55. Bc4+ {[%clk 0:00:26.3]}
55... Kf5 {[%clk 0:00:17.6]} 56. e6 {[%clk 0:00:23.3]} 56... Kf6 {[%clk
0:00:15.1]} 57. Kc5 {[%clk 0:00:24.6]} 57... Be8 {[%clk 0:00:14.6]} 58. Kd6
{[%clk 0:00:25.8]} 1-0

[Event "*** Titled Tuesday Blitz"]
[Site "Chess.com"]
[Date "2019.07.02"]
[Round "5"]
[White "axvesik"]
[Black "bubacik"]
[Result "1/2-1/2"]
[WhiteElo "2441"]
[BlackElo "2672"]
[TimeControl "180+2"]
[EndTime "14:08:41 PDT"]
[Termination "Game drawn - insufficient material"]

1. e4 {[%clk 0:02:16.9]} 1... c5 {[%clk 0:02:18.1]} 2. Nf3 {[%clk 0:02:16.6]}
2... Nc6 {[%clk 0:02:13.9]} 3. d4 {[%clk 0:02:18]} 3... cxd4 {[%clk 0:02:15.8]}
4. Nxd4 {[%clk 0:02:19.7]} 4... e5 {[%clk 0:02:16.9]} 5. Nb5 {[%clk 0:02:20.6]}
5... d6 {[%clk 0:02:18.1]} 6. c4 {[%clk 0:02:20]} 6... a6 {[%clk 0:02:17.3]} 7.
N5c3 {[%clk 0:02:20]} 7... Nf6 {[%clk 0:02:17.8]} 8. Be2 {[%clk 0:02:09.6]} 8...
Be6 {[%clk 0:02:18.3]} 9. O-O {[%clk 0:02:09.7]} 9... Rc8 {[%clk 0:02:19.3]} 10.
Be3 {[%clk 0:02:07.8]} 10... g6 {[%clk 0:02:19.6]} 11. Na3 {[%clk 0:02:05.1]}
11... Bg7 {[%clk 0:02:20]} 12. Qd2 {[%clk 0:02:04.2]} 12... O-O {[%clk 0:02:20]}
13. Rad1 {[%clk 0:01:59.6]} 13... Qa5 {[%clk 0:02:21.3]} 14. f3 {[%clk
0:01:39.6]} 14... Nd4 {[%clk 0:01:49.2]} 15. Bd3 {[%clk 0:01:01.1]} 15... Nd7
{[%clk 0:01:38.8]} 16. Nd5 {[%clk 0:00:39.3]} 16... Qxd2 {[%clk 0:01:40.7]} 17.
Rxd2 {[%clk 0:00:40.3]} 17... Rfe8 {[%clk 0:01:33.8]} 18. Nc2 {[%clk 0:00:36.6]}
18... Nc5 {[%clk 0:01:28.4]} 19. Nxd4 {[%clk 0:00:32.7]} 19... exd4 {[%clk
0:01:30.3]} 20. Bf2 {[%clk 0:00:34.1]} 20... Nxd3 {[%clk 0:01:29.3]} 21. Rxd3
{[%clk 0:00:35.1]} 21... Rxc4 {[%clk 0:01:30.1]} 22. b3 {[%clk 0:00:30.6]} 22...
Bxd5 {[%clk 0:01:30.6]} 23. exd5 {[%clk 0:00:21.2]} 23... Rc2 {[%clk 0:01:25.8]}
24. Bxd4 {[%clk 0:00:18.6]} 24... Bxd4+ {[%clk 0:01:26.4]} 25. Rxd4 {[%clk
0:00:19.9]} 25... Ree2 {[%clk 0:01:27.9]} 26. Rg4 {[%clk 0:00:20.9]} 26... Rxa2
{[%clk 0:01:29]} 27. Rc1 {[%clk 0:00:21.4]} 27... Rad2 {[%clk 0:01:29.4]} 28. h4
{[%clk 0:00:18.8]} 28... Rxd5 {[%clk 0:01:29]} 29. Rc7 {[%clk 0:00:20.4]} 29...
h5 {[%clk 0:01:20]} 30. Rf4 {[%clk 0:00:18.3]} 30... Rf5 {[%clk 0:00:54.9]} 31.
Rxf5 {[%clk 0:00:17.4]} 31... gxf5 {[%clk 0:00:56.8]} 32. Rxb7 {[%clk
0:00:19.1]} 32... Rb2 {[%clk 0:00:56.4]} 33. Rb6 {[%clk 0:00:19.1]} 33... d5
{[%clk 0:00:45.4]} 34. Rd6 {[%clk 0:00:18]} 34... Kg7 {[%clk 0:00:40.9]} 35.
Rxd5 {[%clk 0:00:18.4]} 35... Kf6 {[%clk 0:00:41.4]} 36. Ra5 {[%clk 0:00:18.6]}
36... Rxb3 {[%clk 0:00:41.3]} 37. Rxa6+ {[%clk 0:00:19.9]} 37... Ke5 {[%clk
0:00:43.2]} 38. Kh2 {[%clk 0:00:21.1]} 38... Rb4 {[%clk 0:00:42.6]} 39. Kh3
{[%clk 0:00:20.4]} 39... Kf4 {[%clk 0:00:41.2]} 40. Rh6 {[%clk 0:00:20.1]} 40...
Rb1 {[%clk 0:00:41.3]} 41. Kh2 {[%clk 0:00:21.5]} 41... Ke3 {[%clk 0:00:31.9]}
42. Rxh5 {[%clk 0:00:23.1]} 42... f4 {[%clk 0:00:30]} 43. Re5+ {[%clk
0:00:24.1]} 43... Kf2 {[%clk 0:00:31.1]} 44. h5 {[%clk 0:00:22.9]} 44... f6
{[%clk 0:00:29]} 45. Rc5 {[%clk 0:00:20.4]} 45... Rb2 {[%clk 0:00:18.5]} 46. h6
{[%clk 0:00:18.8]} 46... Rb7 {[%clk 0:00:14.4]} 47. Rh5 {[%clk 0:00:18.8]} 47...
Rh7 {[%clk 0:00:12]} 48. Kh3 {[%clk 0:00:20.2]} 48... f5 {[%clk 0:00:13.3]} 49.
Kh4 {[%clk 0:00:19.5]} 49... Kxg2 {[%clk 0:00:13.9]} 50. Kg5 {[%clk 0:00:21.1]}
50... Kxf3 {[%clk 0:00:15.2]} 51. Kxf5 {[%clk 0:00:22.6]} 51... Kg3 {[%clk
0:00:12.5]} 52. Kg6 {[%clk 0:00:20.6]} 52... Rh8 {[%clk 0:00:10.1]} 53. h7
{[%clk 0:00:20.1]} 53... f3 {[%clk 0:00:10.7]} 54. Rg5+ {[%clk 0:00:21.6]} 54...
Kh2 {[%clk 0:00:11.2]} 55. Rf5 {[%clk 0:00:21.2]} 55... Kg2 {[%clk 0:00:11.9]}
56. Kg7 {[%clk 0:00:22.8]} 56... Rxh7+ {[%clk 0:00:12.1]} 57. Kxh7 {[%clk
0:00:24.5]} 57... f2 {[%clk 0:00:13.8]} 58. Rxf2+ {[%clk 0:00:26.2]} 58... Kxf2
{[%clk 0:00:15.7]} 1/2-1/2

[Event "*** Titled Tuesday Blitz"]
[Site "Chess.com"]
[Date "2019.07.02"]
[Round "5"]
[White "WilliamSchill"]
[Black "csati17"]
[Result "1-0"]
[WhiteElo "1963"]
[BlackElo "2499"]
[TimeControl "180+2"]
[EndTime "14:08:47 PDT"]
[Termination "WilliamSchill won by resignation"]

1. e4 {[%clk 0:03:01.6]} 1... e6 {[%clk 0:03:00.5]} 2. d4 {[%clk 0:03:02.1]}
2... d5 {[%clk 0:03:01]} 3. Nc3 {[%clk 0:03:03.2]} 3... Bb4 {[%clk 0:03:00.7]}
4. e5 {[%clk 0:03:04.3]} 4... Ne7 {[%clk 0:03:01.3]} 5. a3 {[%clk 0:03:03]} 5...
Bxc3+ {[%clk 0:03:02.7]} 6. bxc3 {[%clk 0:03:04.2]} 6... b6 {[%clk 0:03:04.6]}
7. Qg4 {[%clk 0:03:03.1]} 7... Ng6 {[%clk 0:03:05.5]} 8. Nf3 {[%clk 0:02:59.2]}
8... Ba6 {[%clk 0:03:05.9]} 9. Bxa6 {[%clk 0:02:59.4]} 9... Nxa6 {[%clk
0:03:07.8]} 10. h4 {[%clk 0:02:58.3]} 10... h5 {[%clk 0:03:07.7]} 11. Qg3 {[%clk
0:02:55.6]} 11... c5 {[%clk 0:03:09.6]} 12. Ng5 {[%clk 0:02:42.7]} 12... Qd7
{[%clk 0:03:09.2]} 13. Qf3 {[%clk 0:02:36]} 13... Rc8 {[%clk 0:03:04.1]} 14. Qd3
{[%clk 0:02:09.6]} 14... Qa4 {[%clk 0:03:00.8]} 15. Be3 {[%clk 0:01:50]} 15...
cxd4 {[%clk 0:02:59]} 16. Bxd4 {[%clk 0:01:50.5]} 16... Nc5 {[%clk 0:02:53.7]}
17. Qf3 {[%clk 0:01:50]} 17... Qd7 {[%clk 0:02:54.2]} 18. g3 {[%clk 0:01:46.1]}
18... Ne4 {[%clk 0:02:18.4]} 19. Nxe4 {[%clk 0:01:44.4]} 19... dxe4 {[%clk
0:02:20.3]} 20. Qxe4 {[%clk 0:01:45.4]} 20... Qc6 {[%clk 0:02:16.9]} 21. Qxc6+
{[%clk 0:01:41.5]} 21... Rxc6 {[%clk 0:02:18.8]} 22. a4 {[%clk 0:01:35.7]} 22...
f6 {[%clk 0:02:04.8]} 23. exf6 {[%clk 0:01:25.5]} 23... e5 {[%clk 0:02:05.9]}
24. fxg7 {[%clk 0:01:25.4]} 24... Rg8 {[%clk 0:02:07]} 25. Be3 {[%clk 0:01:21]}
25... Rxg7 {[%clk 0:02:07.1]} 26. Bd2 {[%clk 0:01:08.7]} 26... e4 {[%clk
0:01:56.9]} 27. Kd1 {[%clk 0:00:46.6]} 27... Rf7 {[%clk 0:01:43.2]} 28. Re1
{[%clk 0:00:42.5]} 28... Rc4 {[%clk 0:01:42.6]} 29. Re2 {[%clk 0:00:33.5]} 29...
Ne5 {[%clk 0:01:40.3]} 30. a5 {[%clk 0:00:31.5]} 30... b5 {[%clk 0:01:39.7]} 31.
a6 {[%clk 0:00:30.7]} 31... Ng4 {[%clk 0:01:20.7]} 32. Be1 {[%clk 0:00:23.9]}
32... Kd7 {[%clk 0:01:01.2]} 33. Rb1 {[%clk 0:00:19.8]} 33... Kc6 {[%clk
0:01:02.2]} 34. Rb4 {[%clk 0:00:20.5]} 34... Rxb4 {[%clk 0:00:33.4]} 35. cxb4
{[%clk 0:00:21.1]} 35... Kd5 {[%clk 0:00:35.3]} 36. c3 {[%clk 0:00:09.9]} 36...
Rf6 {[%clk 0:00:27.2]} 37. Rd2+ {[%clk 0:00:10.6]} 37... Ke5 {[%clk 0:00:26.1]}
38. Rd8 {[%clk 0:00:08.4]} 38... Rxa6 {[%clk 0:00:27.4]} 39. Re8+ {[%clk
0:00:08.2]} 39... Kd5 {[%clk 0:00:28.3]} 40. Rd8+ {[%clk 0:00:09]} 40... Ke5
{[%clk 0:00:18.5]} 41. Re8+ {[%clk 0:00:09.9]} 41... Re6 {[%clk 0:00:19]} 42.
Rxe6+ {[%clk 0:00:09.6]} 42... Kxe6 {[%clk 0:00:20.9]} 43. Ke2 {[%clk
0:00:10.1]} 43... Kd5 {[%clk 0:00:20.5]} 44. f3 {[%clk 0:00:11.3]} 44... exf3+
{[%clk 0:00:21.9]} 45. Kxf3 {[%clk 0:00:12.5]} 45... Kc4 {[%clk 0:00:23.8]} 46.
Kf4 {[%clk 0:00:11.9]} 46... Kd3 {[%clk 0:00:24.1]} 47. Kg5 {[%clk 0:00:12.9]}
47... Ke2 {[%clk 0:00:25.4]} 48. Kxh5 {[%clk 0:00:14.1]} 48... Nf6+ {[%clk
0:00:22.4]} 49. Kg6 {[%clk 0:00:14.5]} 49... Ng4 {[%clk 0:00:21]} 50. h5 {[%clk
0:00:14.8]} 50... Kxe1 {[%clk 0:00:21.6]} 51. h6 {[%clk 0:00:16]} 51... Ne5+
{[%clk 0:00:10.4]} 52. Kf5 {[%clk 0:00:16.3]} 52... Nf7 {[%clk 0:00:11.2]} 53.
h7 {[%clk 0:00:17.6]} 53... Kd2 {[%clk 0:00:11.9]} 54. g4 {[%clk 0:00:19.1]}
54... Kxc3 {[%clk 0:00:12.7]} 55. g5 {[%clk 0:00:20.5]} 55... Kxb4 {[%clk
0:00:13.8]} 56. g6 {[%clk 0:00:21.9]} 56... Nh6+ {[%clk 0:00:15]} 57. Kg5 {[%clk
0:00:22.4]} 1-0